[Event "*** SCC Grand Prix: Titled Tuesday Blitz"]
[Site "Chess.com"]
[Date "2020.08.25"]
[Round "6"]
[White "BeanScreen"]
[Black "rasmussvane"]
[Result "0-1"]
[WhiteElo "2687"]
[BlackElo "2863"]
[TimeControl "180+1"]
[EndTime "11:09:42 PDT"]
[Termination "rasmussvane won by resignation"]

1. e4 {[%clk 0:03:00.6]} 1... c6 {[%clk 0:03:00.4]} 2. d4 {[%clk 0:03:00.9]}
2... d5 {[%clk 0:03:01.3]} 3. exd5 {[%clk 0:03:01.8]} 3... cxd5 {[%clk
0:03:02.2]} 4. Bd3 {[%clk 0:03:02.4]} 4... Nf6 {[%clk 0:03:02.8]} 5. c3 {[%clk
0:03:03.1]} 5... Nc6 {[%clk 0:03:03.7]} 6. Bf4 {[%clk 0:03:03.6]} 6... Bg4
{[%clk 0:03:04.1]} 7. Qb3 {[%clk 0:03:04]} 7... Qd7 {[%clk 0:03:04.6]} 8. Nd2
{[%clk 0:03:04.6]} 8... e6 {[%clk 0:03:05]} 9. Ngf3 {[%clk 0:03:05]} 9... Bd6
{[%clk 0:03:05.4]} 10. Bxd6 {[%clk 0:03:05.4]} 10... Qxd6 {[%clk 0:03:06.3]} 11.
O-O {[%clk 0:03:05.9]} 11... O-O {[%clk 0:03:06.3]} 12. Rfe1 {[%clk 0:03:06.3]}
12... Qc7 {[%clk 0:03:06.4]} 13. Qc2 {[%clk 0:03:03.6]} 13... Rac8 {[%clk
0:03:05.3]} 14. Rac1 {[%clk 0:02:59.7]} 14... Bxf3 {[%clk 0:02:57.8]} 15. Nxf3
{[%clk 0:02:59.7]} 15... a6 {[%clk 0:02:58.7]} 16. a4 {[%clk 0:02:59.7]} 16...
Rfe8 {[%clk 0:02:56.4]} 17. Ne5 {[%clk 0:02:59.1]} 17... h6 {[%clk 0:02:53.6]}
18. Qd2 {[%clk 0:02:55.4]} 18... Qa5 {[%clk 0:02:46.3]} 19. Re3 {[%clk
0:02:29.4]} 19... Nxd4 {[%clk 0:01:45.7]} 20. Rg3 {[%clk 0:02:29.2]} 20... Kf8
{[%clk 0:01:38.4]} 21. b4 {[%clk 0:01:39.3]} 21... Qc7 {[%clk 0:01:27.4]} 22.
Re1 {[%clk 0:01:38.9]} 22... Qxc3 {[%clk 0:01:18.6]} 23. Qxc3 {[%clk 0:01:27.5]}
23... Rxc3 {[%clk 0:01:17.9]} 24. Nxf7 {[%clk 0:01:28.4]} 24... Ne4 {[%clk
0:00:54.8]} 25. Bxe4 {[%clk 0:01:19.5]} 25... Ne2+ {[%clk 0:00:54.4]} 26. Kh1
{[%clk 0:01:10.7]} 26... Nxg3+ {[%clk 0:00:55.3]} 27. hxg3 {[%clk 0:01:11.4]}
27... Kxf7 {[%clk 0:00:54.5]} 28. Bf3 {[%clk 0:01:10.7]} 28... Kf6 {[%clk
0:00:50.6]} 29. Kh2 {[%clk 0:01:08.8]} 29... Re7 {[%clk 0:00:47.8]} 30. Rd1
{[%clk 0:01:06.6]} 30... Rc4 {[%clk 0:00:47.7]} 31. Rb1 {[%clk 0:01:06.8]} 31...
Rec7 {[%clk 0:00:45.2]} 32. a5 {[%clk 0:01:06.6]} 32... Rc1 {[%clk 0:00:44.2]}
33. Rb3 {[%clk 0:01:06.8]} 33... R7c3 {[%clk 0:00:44.4]} 34. Rb2 {[%clk
0:01:06.7]} 34... R1c2 {[%clk 0:00:42]} 35. Rb1 {[%clk 0:01:06.9]} 35... Rxf2
{[%clk 0:00:40.5]} 36. Kh3 {[%clk 0:01:06.7]} 36... Rcc2 {[%clk 0:00:32.8]} 37.
b5 {[%clk 0:01:06.3]} 37... Rb2 {[%clk 0:00:33]} 38. bxa6 {[%clk 0:01:03.3]}
38... bxa6 {[%clk 0:00:32.5]} 39. Rc1 {[%clk 0:01:03.2]} 39... Rb5 {[%clk
0:00:31.6]} 40. Rc6 {[%clk 0:01:02.4]} 40... Rxa5 {[%clk 0:00:30]} 41. Bg4
{[%clk 0:01:02.5]} 41... Ke5 {[%clk 0:00:24]} 42. Rxe6+ {[%clk 0:01:02.2]} 42...
Kd4 {[%clk 0:00:24.4]} 43. Rg6 {[%clk 0:00:59.8]} 43... Rf7 {[%clk 0:00:22.7]}
44. Bc8 {[%clk 0:00:57.5]} 44... Rc7 {[%clk 0:00:22]} 45. Bxa6 {[%clk
0:00:57.4]} 45... Kc3 {[%clk 0:00:16.7]} 46. Be2 {[%clk 0:00:53.3]} 46... d4
{[%clk 0:00:17.1]} 47. Rd6 {[%clk 0:00:52.8]} 47... Rcc5 {[%clk 0:00:17.1]} 48.
Bf3 {[%clk 0:00:50.4]} 48... d3 {[%clk 0:00:11.6]} 49. Kh4 {[%clk 0:00:40.8]}
49... d2 {[%clk 0:00:09.9]} 50. g4 {[%clk 0:00:40.7]} 50... Ra4 {[%clk 0:00:07]}
51. Kg3 {[%clk 0:00:38.7]} 51... Rd4 {[%clk 0:00:07.1]} 52. Rg6 {[%clk
0:00:35.6]} 52... Rc7 {[%clk 0:00:06.5]} 53. Bd1 {[%clk 0:00:35.1]} 53... Kb2
{[%clk 0:00:06.4]} 54. Ra6 {[%clk 0:00:34.6]} 54... Rc1 {[%clk 0:00:05.5]} 55.
Rb6+ {[%clk 0:00:35]} 55... Kc3 {[%clk 0:00:05.6]} 56. Bf3 {[%clk 0:00:11.2]}
56... d1=Q {[%clk 0:00:05.9]} 57. Rc6+ {[%clk 0:00:11.8]} 57... Kd2 {[%clk
0:00:05.4]} 58. Bxd1 {[%clk 0:00:09.4]} 58... Rxc6 {[%clk 0:00:05.5]} 59. Bf3
{[%clk 0:00:10.1]} 59... Rc3 {[%clk 0:00:05.6]} 60. Kh4 {[%clk 0:00:10.7]} 60...
Rxf3 {[%clk 0:00:05.9]} 61. gxf3 {[%clk 0:00:10.7]} 61... Ke3 {[%clk 0:00:06.8]}
62. Kh5 {[%clk 0:00:10.1]} 62... Kxf3 {[%clk 0:00:07.2]} 0-1

[Event "*** SCC Grand Prix: Titled Tuesday Blitz"]
[Site "Chess.com"]
[Date "2020.08.25"]
[Round "6"]
[White "zmeeed67"]
[Black "alfiefischer77"]
[Result "0-1"]
[WhiteElo "2429"]
[BlackElo "2302"]
[TimeControl "180+1"]
[EndTime "11:09:43 PDT"]
[Termination "alfiefischer77 won by checkmate"]

1. e4 {[%clk 0:03:00.9]} 1... c5 {[%clk 0:02:57.1]} 2. g3 {[%clk 0:03:00.5]}
2... d5 {[%clk 0:02:56.4]} 3. exd5 {[%clk 0:03:00]} 3... Qxd5 {[%clk 0:02:57.3]}
4. Qf3 {[%clk 0:03:00.1]} 4... Nf6 {[%clk 0:02:54.1]} 5. Bg2 {[%clk 0:03:00.2]}
5... Qxf3 {[%clk 0:02:36.1]} 6. Nxf3 {[%clk 0:02:59.5]} 6... Nc6 {[%clk
0:02:34.9]} 7. O-O {[%clk 0:02:49.5]} 7... g6 {[%clk 0:02:24]} 8. Nc3 {[%clk
0:02:48.6]} 8... Bg7 {[%clk 0:02:20.5]} 9. d3 {[%clk 0:02:48.4]} 9... O-O {[%clk
0:02:19]} 10. a3 {[%clk 0:02:43.3]} 10... Rd8 {[%clk 0:01:51.7]} 11. Bf4 {[%clk
0:02:34.7]} 11... Bd7 {[%clk 0:01:42.8]} 12. Ne5 {[%clk 0:02:27.5]} 12... Rac8
{[%clk 0:01:03]} 13. Nxd7 {[%clk 0:02:11.5]} 13... Rxd7 {[%clk 0:00:56.9]} 14.
Ne2 {[%clk 0:01:56.8]} 14... Nd5 {[%clk 0:00:53.1]} 15. Bc1 {[%clk 0:01:54.4]}
15... Nd4 {[%clk 0:00:50.8]} 16. Nxd4 {[%clk 0:01:22.4]} 16... cxd4 {[%clk
0:00:50.6]} 17. Bg5 {[%clk 0:00:33.9]} 17... f6 {[%clk 0:00:37.5]} 18. Bh3
{[%clk 0:00:33.2]} 18... f5 {[%clk 0:00:29.3]} 19. Rac1 {[%clk 0:00:27.3]} 19...
Kf7 {[%clk 0:00:24.2]} 20. Bg2 {[%clk 0:00:25.6]} 20... e6 {[%clk 0:00:23.2]}
21. Rfe1 {[%clk 0:00:22.2]} 21... Rdc7 {[%clk 0:00:20.9]} 22. Re2 {[%clk
0:00:19.8]} 22... Re8 {[%clk 0:00:18.8]} 23. Bf4 {[%clk 0:00:18.8]} 23... Nxf4
{[%clk 0:00:18.1]} 24. gxf4 {[%clk 0:00:18.6]} 24... Bh6 {[%clk 0:00:17.9]} 25.
Rce1 {[%clk 0:00:15.2]} 25... Bxf4 {[%clk 0:00:14.5]} 26. Bd5 {[%clk 0:00:15.5]}
26... Rce7 {[%clk 0:00:11.9]} 27. Bc4 {[%clk 0:00:15.8]} 27... Kf6 {[%clk
0:00:11.8]} 28. Kg2 {[%clk 0:00:15.9]} 28... e5 {[%clk 0:00:11.7]} 29. f3 {[%clk
0:00:15.8]} 29... Bg5 {[%clk 0:00:11.2]} 30. c3 {[%clk 0:00:16]} 30... Be3
{[%clk 0:00:11.1]} 31. h4 {[%clk 0:00:14.3]} 31... a6 {[%clk 0:00:09.1]} 32. Bd5
{[%clk 0:00:13.4]} 32... b5 {[%clk 0:00:08.9]} 33. c4 {[%clk 0:00:13.4]} 33...
bxc4 {[%clk 0:00:08.6]} 34. Bxc4 {[%clk 0:00:14]} 34... a5 {[%clk 0:00:07]} 35.
a4 {[%clk 0:00:12.7]} 35... Rb8 {[%clk 0:00:06.9]} 36. b3 {[%clk 0:00:13.2]}
36... Rc7 {[%clk 0:00:06.8]} 37. Rxe3 {[%clk 0:00:13.2]} 37... dxe3 {[%clk
0:00:06.6]} 38. Rxe3 {[%clk 0:00:13.7]} 38... Rd7 {[%clk 0:00:07.1]} 39. Re1
{[%clk 0:00:13.4]} 39... Rd4 {[%clk 0:00:07.3]} 40. Kf2 {[%clk 0:00:13.6]} 40...
Rxh4 {[%clk 0:00:06.7]} 41. Ke3 {[%clk 0:00:14]} 41... Rh2 {[%clk 0:00:06.3]}
42. Rg1 {[%clk 0:00:12.6]} 42... Rd8 {[%clk 0:00:05.9]} 43. f4 {[%clk
0:00:11.7]} 43... exf4+ {[%clk 0:00:05.8]} 44. Kxf4 {[%clk 0:00:11.6]} 44...
Rd4+ {[%clk 0:00:03.8]} 45. Kg3 {[%clk 0:00:11.3]} 45... Rd8 {[%clk 0:00:04.7]}
46. Kxh2 {[%clk 0:00:10.8]} 46... g5 {[%clk 0:00:04.9]} 47. Re1 {[%clk 0:00:11]}
47... f4 {[%clk 0:00:05.3]} 48. Re6+ {[%clk 0:00:11.3]} 48... Kf5 {[%clk
0:00:05.5]} 49. Ra6 {[%clk 0:00:07.9]} 49... h5 {[%clk 0:00:03.8]} 50. Be6+
{[%clk 0:00:07.7]} 50... Ke5 {[%clk 0:00:03.7]} 51. Bc4 {[%clk 0:00:06.5]} 51...
Kd4 {[%clk 0:00:02.5]} 52. Rxa5 {[%clk 0:00:06.6]} 52... Ke3 {[%clk 0:00:02.1]}
53. Rxg5 {[%clk 0:00:06.3]} 53... f3 {[%clk 0:00:02.5]} 54. Rxh5 {[%clk
0:00:05.7]} 54... f2 {[%clk 0:00:02.6]} 55. Rf5 {[%clk 0:00:05.6]} 55... Rd4
{[%clk 0:00:03.5]} 56. Kg2 {[%clk 0:00:04.5]} 56... Rg4+ {[%clk 0:00:03.7]} 57.
Kh2 {[%clk 0:00:03.8]} 57... Rh4+ {[%clk 0:00:03]} 58. Kg3 {[%clk 0:00:03.3]}
58... Rh7 {[%clk 0:00:02.4]} 59. Rxf2 {[%clk 0:00:01.4]} 59... Rg7+ {[%clk
0:00:02.9]} 60. Kh4 {[%clk 0:00:01.9]} 60... Kxf2 {[%clk 0:00:03.8]} 61. Kh5
{[%clk 0:00:01.7]} 61... Kf3 {[%clk 0:00:04.7]} 62. d4 {[%clk 0:00:02]} 62...
Rd7 {[%clk 0:00:04.9]} 63. d5 {[%clk 0:00:01.1]} 63... Ke4 {[%clk 0:00:05.2]}
64. a5 {[%clk 0:00:01.4]} 64... Kf5 {[%clk 0:00:05.5]} 65. a6 {[%clk 0:00:01.8]}
65... Rh7# {[%clk 0:00:05.1]} 0-1

[Event "*** SCC Grand Prix: Titled Tuesday Blitz"]
[Site "Chess.com"]
[Date "2020.08.25"]
[Round "6"]
[White "Ze-Pequeno"]
[Black "KonstantinB_1983"]
[Result "1-0"]
[WhiteElo "2148"]
[BlackElo "2370"]
[TimeControl "180+1"]
[EndTime "11:09:50 PDT"]
[Termination "Ze-Pequeno won on time"]

1. e4 {[%clk 0:02:59.7]} 1... d5 {[%clk 0:02:58.8]} 2. exd5 {[%clk 0:02:59.4]}
2... Qxd5 {[%clk 0:02:59.1]} 3. Nc3 {[%clk 0:02:59.3]} 3... Qd6 {[%clk
0:02:58.7]} 4. d4 {[%clk 0:02:59]} 4... Nf6 {[%clk 0:02:57.7]} 5. Nf3 {[%clk
0:02:59.1]} 5... a6 {[%clk 0:02:56.4]} 6. g3 {[%clk 0:02:58.6]} 6... Bg4 {[%clk
0:02:54.9]} 7. Bg2 {[%clk 0:02:55.7]} 7... Nc6 {[%clk 0:02:53.4]} 8. O-O {[%clk
0:02:27.3]} 8... O-O-O {[%clk 0:02:52.4]} 9. d5 {[%clk 0:02:27.5]} 9... Ne5
{[%clk 0:02:50.1]} 10. Bf4 {[%clk 0:02:23.6]} 10... Nxf3+ {[%clk 0:02:49]} 11.
Bxf3 {[%clk 0:02:22.8]} 11... Bxf3 {[%clk 0:02:49.2]} 12. Qxf3 {[%clk 0:02:23]}
12... e5 {[%clk 0:02:49.2]} 13. dxe6 {[%clk 0:02:18.4]} 13... Qxe6 {[%clk
0:02:48.6]} 14. Bg5 {[%clk 0:02:18.8]} 14... Bd6 {[%clk 0:02:47.3]} 15. Bxf6
{[%clk 0:01:59.7]} 15... gxf6 {[%clk 0:02:44.2]} 16. Rfe1 {[%clk 0:01:59.3]}
16... Be5 {[%clk 0:02:43.3]} 17. Rad1 {[%clk 0:01:44.9]} 17... Kb8 {[%clk
0:02:37]} 18. Nd5 {[%clk 0:01:38.7]} 18... c6 {[%clk 0:02:27.5]} 19. Nc3 {[%clk
0:01:22.7]} 19... Qc4 {[%clk 0:02:07.9]} 20. a3 {[%clk 0:01:16.1]} 20... h5
{[%clk 0:01:59.7]} 21. h4 {[%clk 0:01:14.1]} 21... Rdg8 {[%clk 0:01:56.1]} 22.
Re4 {[%clk 0:01:00.5]} 22... Qe6 {[%clk 0:01:54.4]} 23. Kg2 {[%clk 0:00:55.5]}
23... f5 {[%clk 0:01:46.1]} 24. Ree1 {[%clk 0:00:46.2]} 24... f6 {[%clk
0:01:21.6]} 25. Kf1 {[%clk 0:00:33.1]} 25... Rg4 {[%clk 0:01:14.5]} 26. Ne2
{[%clk 0:00:30.5]} 26... Qc8 {[%clk 0:01:07.7]} 27. c3 {[%clk 0:00:24.9]} 27...
Rhg8 {[%clk 0:01:03.4]} 28. Rd3 {[%clk 0:00:24]} 28... c5 {[%clk 0:00:55.3]} 29.
Red1 {[%clk 0:00:21.2]} 29... Qc7 {[%clk 0:00:42.9]} 30. Ke1 {[%clk 0:00:16.5]}
30... Qb6 {[%clk 0:00:41.4]} 31. R1d2 {[%clk 0:00:15.2]} 31... f4 {[%clk
0:00:40.3]} 32. Nxf4 {[%clk 0:00:13.4]} 32... Bxf4 {[%clk 0:00:39.4]} 33. gxf4
{[%clk 0:00:14.3]} 33... Rg1+ {[%clk 0:00:36]} 34. Ke2 {[%clk 0:00:14.3]} 34...
Qb3 {[%clk 0:00:32]} 35. Rd7 {[%clk 0:00:12.1]} 35... Re8+ {[%clk 0:00:30]} 36.
Kd3 {[%clk 0:00:12]} 36... c4+ {[%clk 0:00:21.5]} 37. Kd4 {[%clk 0:00:11.4]}
37... Rc8 {[%clk 0:00:20.5]} 38. Qd5 {[%clk 0:00:10.8]} 38... Qb6+ {[%clk
0:00:16.4]} 39. Ke4 {[%clk 0:00:10.2]} 39... Re8+ {[%clk 0:00:16.2]} 40. Kf3
{[%clk 0:00:10.4]} 40... Rf1 {[%clk 0:00:15.4]} 41. Qd6+ {[%clk 0:00:10]} 41...
Qxd6 {[%clk 0:00:15.7]} 42. R7xd6 {[%clk 0:00:10.3]} 42... Rf8 {[%clk
0:00:14.5]} 43. Rd8+ {[%clk 0:00:10.2]} 43... Rxd8 {[%clk 0:00:13.3]} 44. Rxd8+
{[%clk 0:00:11.1]} 44... Ka7 {[%clk 0:00:13.1]} 45. Rh8 {[%clk 0:00:12]} 45...
Rb1 {[%clk 0:00:12.5]} 46. Rxh5 {[%clk 0:00:12.9]} 46... Rxb2 {[%clk 0:00:12.8]}
47. Rc5 {[%clk 0:00:13.2]} 47... b5 {[%clk 0:00:11.8]} 48. h5 {[%clk 0:00:12.6]}
48... Rc2 {[%clk 0:00:12.2]} 49. h6 {[%clk 0:00:12.6]} 49... Rxc3+ {[%clk
0:00:12.4]} 50. Kg4 {[%clk 0:00:12.9]} 50... Rc1 {[%clk 0:00:11.4]} 51. Rh5
{[%clk 0:00:10.6]} 51... Rg1+ {[%clk 0:00:11.6]} 52. Kf5 {[%clk 0:00:10.7]}
52... Rg8 {[%clk 0:00:11.8]} 53. h7 {[%clk 0:00:10.6]} 53... Rh8 {[%clk
0:00:11.2]} 54. Kxf6 {[%clk 0:00:11.5]} 54... a5 {[%clk 0:00:10.3]} 55. Kg7
{[%clk 0:00:12.4]} 55... Rxh7+ {[%clk 0:00:09.6]} 56. Kxh7 {[%clk 0:00:11.7]}
56... Kb6 {[%clk 0:00:09.7]} 57. f5 {[%clk 0:00:11.1]} 57... c3 {[%clk
0:00:09.3]} 58. f6 {[%clk 0:00:12]} 58... c2 {[%clk 0:00:09.6]} 59. Rh1 {[%clk
0:00:11.2]} 59... b4 {[%clk 0:00:07]} 60. f7 {[%clk 0:00:11.5]} 60... b3 {[%clk
0:00:06.3]} 61. f8=Q {[%clk 0:00:11.8]} 61... Kb5 {[%clk 0:00:04.1]} 62. Qf6
{[%clk 0:00:12]} 62... Kc4 {[%clk 0:00:03.1]} 63. Qb2 {[%clk 0:00:12.9]} 63...
a4 {[%clk 0:00:01.9]} 64. Rc1 {[%clk 0:00:13.8]} 64... Kd3 {[%clk 0:00:01.2]}
65. f4 {[%clk 0:00:14.1]} 1-0

[Event "*** SCC Grand Prix: Titled Tuesday Blitz"]
[Site "Chess.com"]
[Date "2020.08.25"]
[Round "6"]
[White "mishanick"]
[Black "K_A_S_T_O_R"]
[Result "1/2-1/2"]
[WhiteElo "2959"]
[BlackElo "2724"]
[TimeControl "180+1"]
[EndTime "11:09:58 PDT"]
[Termination "Game drawn - insufficient material"]

1. d4 {[%clk 0:03:00.9]} 1... d5 {[%clk 0:02:59.7]} 2. c4 {[%clk 0:02:51.6]}
2... c6 {[%clk 0:02:59.7]} 3. Nf3 {[%clk 0:02:52.3]} 3... Nf6 {[%clk 0:02:59.7]}
4. Nc3 {[%clk 0:02:52.8]} 4... e6 {[%clk 0:02:59.8]} 5. Bg5 {[%clk 0:02:50.6]}
5... dxc4 {[%clk 0:02:59.8]} 6. e4 {[%clk 0:02:49.5]} 6... b5 {[%clk 0:02:59.8]}
7. e5 {[%clk 0:02:49.8]} 7... h6 {[%clk 0:03:00.4]} 8. Bh4 {[%clk 0:02:50.1]}
8... g5 {[%clk 0:03:00.9]} 9. Nxg5 {[%clk 0:02:50.7]} 9... hxg5 {[%clk
0:03:01.4]} 10. Bxg5 {[%clk 0:02:51.6]} 10... Nbd7 {[%clk 0:03:01.4]} 11. exf6
{[%clk 0:02:50.7]} 11... Bb7 {[%clk 0:03:01.2]} 12. g3 {[%clk 0:02:51.4]} 12...
c5 {[%clk 0:03:01.5]} 13. d5 {[%clk 0:02:51.4]} 13... Nxf6 {[%clk 0:03:01.8]}
14. Bg2 {[%clk 0:02:51]} 14... Be7 {[%clk 0:03:01.9]} 15. O-O {[%clk 0:02:48.4]}
15... Nxd5 {[%clk 0:03:01.9]} 16. Bxe7 {[%clk 0:02:47.3]} 16... Kxe7 {[%clk
0:03:02.4]} 17. Nxb5 {[%clk 0:02:47.5]} 17... Qb6 {[%clk 0:03:02.2]} 18. Na3
{[%clk 0:02:47.3]} 18... Rh4 {[%clk 0:03:01.5]} 19. Rc1 {[%clk 0:02:46.6]} 19...
Qa6 {[%clk 0:02:31.5]} 20. Qe2 {[%clk 0:02:46.1]} 20... Rg8 {[%clk 0:02:14.5]}
21. Nxc4 {[%clk 0:01:33.4]} 21... Nf4 {[%clk 0:02:00.7]} 22. Qe5 {[%clk
0:01:33.3]} 22... Nxg2 {[%clk 0:01:30.9]} 23. Qxc5+ {[%clk 0:01:32.5]} 23... Kf6
{[%clk 0:01:28.8]} 24. Qe5+ {[%clk 0:00:55.1]} 24... Kg6 {[%clk 0:01:15.4]} 25.
gxh4 {[%clk 0:00:48.6]} 25... Nxh4 {[%clk 0:01:00.6]} 26. f3 {[%clk 0:00:46.7]}
26... Nxf3+ {[%clk 0:00:38.1]} 27. Rxf3 {[%clk 0:00:44]} 27... Bxf3 {[%clk
0:00:38.5]} 28. Kf2 {[%clk 0:00:32]} 28... Kh7 {[%clk 0:00:19.7]} 29. Kxf3
{[%clk 0:00:28.6]} 29... f5 {[%clk 0:00:15.2]} 30. Ne3 {[%clk 0:00:24.3]} 30...
Qb7+ {[%clk 0:00:14.5]} 31. Kf2 {[%clk 0:00:24.7]} 31... Qb6 {[%clk 0:00:11]}
32. Rc7+ {[%clk 0:00:23.1]} 32... Kg6 {[%clk 0:00:08.9]} 33. Qg3+ {[%clk
0:00:20.9]} 33... Kf6 {[%clk 0:00:08.1]} 34. Qh4+ {[%clk 0:00:19.4]} 34... Ke5
{[%clk 0:00:04.7]} 35. Rc4 {[%clk 0:00:13.8]} 35... Qxb2+ {[%clk 0:00:03.5]} 36.
Rc2 {[%clk 0:00:14.3]} 36... Qd4 {[%clk 0:00:03.2]} 37. Qxd4+ {[%clk 0:00:12.2]}
37... Kxd4 {[%clk 0:00:04.1]} 38. Rc4+ {[%clk 0:00:12.4]} 38... Kd3 {[%clk
0:00:04.2]} 39. Rc5 {[%clk 0:00:12.2]} 39... f4 {[%clk 0:00:04.5]} 40. Ng2
{[%clk 0:00:12.2]} 40... Kd4 {[%clk 0:00:04.1]} 41. Ra5 {[%clk 0:00:10.9]} 41...
e5 {[%clk 0:00:05]} 42. Rxa7 {[%clk 0:00:11.2]} 42... Ke4 {[%clk 0:00:05.2]} 43.
h4 {[%clk 0:00:09.1]} 43... Rd8 {[%clk 0:00:04.6]} 44. Ra4+ {[%clk 0:00:05.2]}
44... Kf5 {[%clk 0:00:04.8]} 45. Ke2 {[%clk 0:00:05.7]} 45... e4 {[%clk
0:00:03.6]} 46. Ne1 {[%clk 0:00:06]} 46... Rb8 {[%clk 0:00:02.5]} 47. Kd2 {[%clk
0:00:05.8]} 47... Rb2+ {[%clk 0:00:01.5]} 48. Kc3 {[%clk 0:00:05.8]} 48... Re2
{[%clk 0:00:02.4]} 49. Nc2 {[%clk 0:00:06.2]} 49... f3 {[%clk 0:00:02.9]} 50.
Ra8 {[%clk 0:00:06.7]} 50... Kf4 {[%clk 0:00:03.4]} 51. Rf8+ {[%clk 0:00:07.2]}
51... Kg3 {[%clk 0:00:03.8]} 52. Nd4 {[%clk 0:00:07.9]} 52... Re1 {[%clk
0:00:04.1]} 53. Kd2 {[%clk 0:00:03.6]} 53... Rb1 {[%clk 0:00:03.3]} 54. a4
{[%clk 0:00:02.6]} 54... Rb4 {[%clk 0:00:03.3]} 55. Nf5+ {[%clk 0:00:02.2]}
55... Kf2 {[%clk 0:00:02.9]} 56. a5 {[%clk 0:00:02.1]} 56... Ra4 {[%clk
0:00:02.9]} 57. Ra8 {[%clk 0:00:01.6]} 57... Ra2+ {[%clk 0:00:03.1]} 58. Kc3
{[%clk 0:00:02.3]} 58... e3 {[%clk 0:00:03.6]} 59. Nxe3 {[%clk 0:00:03]} 59...
Kxe3 {[%clk 0:00:03.8]} 60. Kb3 {[%clk 0:00:03.9]} 60... Ra1 {[%clk 0:00:03.6]}
61. Re8+ {[%clk 0:00:04.4]} 61... Kd2 {[%clk 0:00:03.3]} 62. Kb4 {[%clk
0:00:04.8]} 62... Rb1+ {[%clk 0:00:03.3]} 63. Kc5 {[%clk 0:00:04.8]} 63... f2
{[%clk 0:00:04.2]} 64. Rd8+ {[%clk 0:00:05.4]} 64... Kc3 {[%clk 0:00:04.5]} 65.
Rf8 {[%clk 0:00:04.9]} 65... f1=Q {[%clk 0:00:05.4]} 66. Rxf1 {[%clk 0:00:05.6]}
66... Rxf1 {[%clk 0:00:06.3]} 67. a6 {[%clk 0:00:06.5]} 67... Rf5+ {[%clk
0:00:06.5]} 68. Kb6 {[%clk 0:00:07.2]} 68... Rf6+ {[%clk 0:00:06.4]} 69. Kb5
{[%clk 0:00:07]} 69... Kd4 {[%clk 0:00:06.3]} 70. a7 {[%clk 0:00:07.3]} 70...
Rf8 {[%clk 0:00:06.6]} 71. Kc6 {[%clk 0:00:07.6]} 71... Ke5 {[%clk 0:00:06.7]}
72. h5 {[%clk 0:00:08.2]} 72... Kf6 {[%clk 0:00:06.9]} 73. h6 {[%clk 0:00:09.1]}
73... Kg6 {[%clk 0:00:07.1]} 74. Kb7 {[%clk 0:00:10]} 74... Kxh6 {[%clk
0:00:07.2]} 75. a8=Q {[%clk 0:00:10.9]} 75... Rxa8 {[%clk 0:00:07.4]} 76. Kxa8
{[%clk 0:00:11.8]} 1/2-1/2